{"text_format":"3","workbook":"xlsx","n_sheets":1,"sheets":["Dziennik biegów"],"not_rendered":{"charts":2,"images":1,"defined_names":1},"read":"whole","date_system":"1900"}

{"sheet":"Dziennik biegów","index":0,"n_rows":32,"n_cols":5,"rows_kept":32,"merged":[[21,1,21,4]]}
[]
[]
[]
[]
[]
[]
[null," TWÓJ"]
[null,"PODSUMOWANIE BIEGÓW"]
[null,"MIESIĄC","LICZBA BIEGÓW","CAŁKOWITY DYSTANS (kilometry)","DOCELOWY DYSTANS (kilometry)"]
[null,"2012-01-01",{"$f":"IFERROR(SUMPRODUCT( (MONTH(Dziennik[DANE])=MONTH('Dziennik biegów'!$B10))*(YEAR(Dziennik[DANE])=YEAR('Dziennik biegów'!$B10)) ),\"Wpis daty kontrolnej\")","v":5},{"$f":"IFERROR(SUMPRODUCT( (MONTH(Dziennik[DANE])=MONTH('Dziennik biegów'!$B10))*(YEAR(Dziennik[DANE])=YEAR('Dziennik biegów'!$B10)),Dziennik[DYSTANS (kilometry)] ),\"Wpis daty kontrolnej\")","v":{"v":6.550000000000001,"d":"6.55"}},{"v":6,"d":"6.00"}]
[null,"2012-02-01",{"$f":"IFERROR(SUMPRODUCT( (MONTH(Dziennik[DANE])=MONTH('Dziennik biegów'!$B11))*(YEAR(Dziennik[DANE])=YEAR('Dziennik biegów'!$B11)) ),\"Wpis daty kontrolnej\")","v":2},{"$f":"IFERROR(SUMPRODUCT( (MONTH(Dziennik[DANE])=MONTH('Dziennik biegów'!$B11))*(YEAR(Dziennik[DANE])=YEAR('Dziennik biegów'!$B11)),Dziennik[DYSTANS (kilometry)] ),\"Wpis daty kontrolnej\")","v":{"v":2.2,"d":"2.20"}},{"v":5,"d":"5.00"}]
[null,"2012-03-01",{"$f":"IFERROR(SUMPRODUCT( (MONTH(Dziennik[DANE])=MONTH('Dziennik biegów'!$B12))*(YEAR(Dziennik[DANE])=YEAR('Dziennik biegów'!$B12)) ),\"Wpis daty kontrolnej\")","v":0},{"$f":"IFERROR(SUMPRODUCT( (MONTH(Dziennik[DANE])=MONTH('Dziennik biegów'!$B12))*(YEAR(Dziennik[DANE])=YEAR('Dziennik biegów'!$B12)),Dziennik[DYSTANS (kilometry)] ),\"Wpis daty kontrolnej\")","v":{"v":0,"d":"0.00"}},{"v":6,"d":"6.00"}]
[null,"2012-04-01",{"$f":"IFERROR(SUMPRODUCT( (MONTH(Dziennik[DANE])=MONTH('Dziennik biegów'!$B13))*(YEAR(Dziennik[DANE])=YEAR('Dziennik biegów'!$B13)) ),\"Wpis daty kontrolnej\")","v":0},{"$f":"IFERROR(SUMPRODUCT( (MONTH(Dziennik[DANE])=MONTH('Dziennik biegów'!$B13))*(YEAR(Dziennik[DANE])=YEAR('Dziennik biegów'!$B13)),Dziennik[DYSTANS (kilometry)] ),\"Wpis daty kontrolnej\")","v":{"v":0,"d":"0.00"}},{"v":7,"d":"7.00"}]
[null,"2012-05-01",{"$f":"IFERROR(SUMPRODUCT( (MONTH(Dziennik[DANE])=MONTH('Dziennik biegów'!$B14))*(YEAR(Dziennik[DANE])=YEAR('Dziennik biegów'!$B14)) ),\"Wpis daty kontrolnej\")","v":0},{"$f":"IFERROR(SUMPRODUCT( (MONTH(Dziennik[DANE])=MONTH('Dziennik biegów'!$B14))*(YEAR(Dziennik[DANE])=YEAR('Dziennik biegów'!$B14)),Dziennik[DYSTANS (kilometry)] ),\"Wpis daty kontrolnej\")","v":{"v":0,"d":"0.00"}},{"v":8,"d":"8.00"}]
[null,"2012-06-01",{"$f":"IFERROR(SUMPRODUCT( (MONTH(Dziennik[DANE])=MONTH('Dziennik biegów'!$B15))*(YEAR(Dziennik[DANE])=YEAR('Dziennik biegów'!$B15)) ),\"Wpis daty kontrolnej\")","v":0},{"$f":"IFERROR(SUMPRODUCT( (MONTH(Dziennik[DANE])=MONTH('Dziennik biegów'!$B15))*(YEAR(Dziennik[DANE])=YEAR('Dziennik biegów'!$B15)),Dziennik[DYSTANS (kilometry)] ),\"Wpis daty kontrolnej\")","v":{"v":0,"d":"0.00"}},{"v":8,"d":"8.00"}]
[null,"2012-07-01",{"$f":"IFERROR(SUMPRODUCT( (MONTH(Dziennik[DANE])=MONTH('Dziennik biegów'!$B16))*(YEAR(Dziennik[DANE])=YEAR('Dziennik biegów'!$B16)) ),\"Wpis daty kontrolnej\")","v":0},{"$f":"IFERROR(SUMPRODUCT( (MONTH(Dziennik[DANE])=MONTH('Dziennik biegów'!$B16))*(YEAR(Dziennik[DANE])=YEAR('Dziennik biegów'!$B16)),Dziennik[DYSTANS (kilometry)] ),\"Wpis daty kontrolnej\")","v":{"v":0,"d":"0.00"}},{"v":9,"d":"9.00"}]
[null,"2012-08-01",{"$f":"IFERROR(SUMPRODUCT( (MONTH(Dziennik[DANE])=MONTH('Dziennik biegów'!$B17))*(YEAR(Dziennik[DANE])=YEAR('Dziennik biegów'!$B17)) ),\"Wpis daty kontrolnej\")","v":0},{"$f":"IFERROR(SUMPRODUCT( (MONTH(Dziennik[DANE])=MONTH('Dziennik biegów'!$B17))*(YEAR(Dziennik[DANE])=YEAR('Dziennik biegów'!$B17)),Dziennik[DYSTANS (kilometry)] ),\"Wpis daty kontrolnej\")","v":{"v":0,"d":"0.00"}},{"v":9,"d":"9.00"}]
[null,"2012-09-01",{"$f":"IFERROR(SUMPRODUCT( (MONTH(Dziennik[DANE])=MONTH('Dziennik biegów'!$B18))*(YEAR(Dziennik[DANE])=YEAR('Dziennik biegów'!$B18)) ),\"Wpis daty kontrolnej\")","v":0},{"$f":"IFERROR(SUMPRODUCT( (MONTH(Dziennik[DANE])=MONTH('Dziennik biegów'!$B18))*(YEAR(Dziennik[DANE])=YEAR('Dziennik biegów'!$B18)),Dziennik[DYSTANS (kilometry)] ),\"Wpis daty kontrolnej\")","v":{"v":0,"d":"0.00"}},{"v":9.5,"d":"9.50"}]
[null,"2012-10-01",{"$f":"IFERROR(SUMPRODUCT( (MONTH(Dziennik[DANE])=MONTH('Dziennik biegów'!$B19))*(YEAR(Dziennik[DANE])=YEAR('Dziennik biegów'!$B19)) ),\"Wpis daty kontrolnej\")","v":0},{"$f":"IFERROR(SUMPRODUCT( (MONTH(Dziennik[DANE])=MONTH('Dziennik biegów'!$B19))*(YEAR(Dziennik[DANE])=YEAR('Dziennik biegów'!$B19)),Dziennik[DYSTANS (kilometry)] ),\"Wpis daty kontrolnej\")","v":{"v":0,"d":"0.00"}},{"v":10,"d":"10.00"}]
[null,"2012-11-01",{"$f":"IFERROR(SUMPRODUCT( (MONTH(Dziennik[DANE])=MONTH('Dziennik biegów'!$B20))*(YEAR(Dziennik[DANE])=YEAR('Dziennik biegów'!$B20)) ),\"Wpis daty kontrolnej\")","v":0},{"$f":"IFERROR(SUMPRODUCT( (MONTH(Dziennik[DANE])=MONTH('Dziennik biegów'!$B20))*(YEAR(Dziennik[DANE])=YEAR('Dziennik biegów'!$B20)),Dziennik[DYSTANS (kilometry)] ),\"Wpis daty kontrolnej\")","v":{"v":0,"d":"0.00"}},{"v":10,"d":"10.00"}]
[null,"2012-12-01",{"$f":"IFERROR(SUMPRODUCT( (MONTH(Dziennik[DANE])=MONTH('Dziennik biegów'!$B21))*(YEAR(Dziennik[DANE])=YEAR('Dziennik biegów'!$B21)) ),\"Wpis daty kontrolnej\")","v":0},{"$f":"IFERROR(SUMPRODUCT( (MONTH(Dziennik[DANE])=MONTH('Dziennik biegów'!$B21))*(YEAR(Dziennik[DANE])=YEAR('Dziennik biegów'!$B21)),Dziennik[DYSTANS (kilometry)] ),\"Wpis daty kontrolnej\")","v":{"v":0,"d":"0.00"}},{"v":11,"d":"11.00"}]
[]
[null," TWÓJ"]
[null," DZIENNIK BIEGÓW"]
[null,"DANE","CZAS","DYSTANS (kilometry)","TEMPO (minuty)"]
[null,"2012-01-01",0.006944444444444444,{"v":1.2,"d":"1.20"},{"$f":"IFERROR(MINUTE(Dziennik[[#This Row],[CZAS]])/Dziennik[[#This Row],[DYSTANS (kilometry)]],0)","v":{"v":8.333333333333334,"d":"8.33"}}]
[null,"2012-01-03",0.008333333333333333,1.35,{"$f":"IFERROR(MINUTE(Dziennik[[#This Row],[CZAS]])/Dziennik[[#This Row],[DYSTANS (kilometry)]],0)","v":{"v":8.888888888888888,"d":"8.89"}}]
[null,"2012-01-05",0.010069444444444445,1.45,{"$f":"IFERROR(MINUTE(Dziennik[[#This Row],[CZAS]])/Dziennik[[#This Row],[DYSTANS (kilometry)]],0)","v":{"v":9.655172413793103,"d":"9.66"}}]
[null,"2012-01-08",0.009027777777777779,1.45,{"$f":"IFERROR(MINUTE(Dziennik[[#This Row],[CZAS]])/Dziennik[[#This Row],[DYSTANS (kilometry)]],0)","v":{"v":8.965517241379311,"d":"8.97"}}]
[null,"2012-01-09",0.007175925925925926,{"v":1.1,"d":"1.10"},{"$f":"IFERROR(MINUTE(Dziennik[[#This Row],[CZAS]])/Dziennik[[#This Row],[DYSTANS (kilometry)]],0)","v":{"v":9.09090909090909,"d":"9.09"}}]
[null,"2012-02-01",0.006319444444444444,{"v":1.1,"d":"1.10"},{"$f":"IFERROR(MINUTE(Dziennik[[#This Row],[CZAS]])/Dziennik[[#This Row],[DYSTANS (kilometry)]],0)","v":{"v":8.181818181818182,"d":"8.18"}}]
[null,"2012-02-03",0.005555555555555556,{"v":1.1,"d":"1.10"},{"$f":"IFERROR(MINUTE(Dziennik[[#This Row],[CZAS]])/Dziennik[[#This Row],[DYSTANS (kilometry)]],0)","v":{"v":7.2727272727272725,"d":"7.27"}}]